lending/lending_fUSD_20240809
["ID","MTS","AMOUNT","RATE_DAILY","PERIOD"]
[334525408,1723173100916,-843.48344448,0.00024395,5]
[334525409,1723173100924,-500.0,0.00024395,5]
[334525410,1723173100934,-260.49298284,0.00024395,5]
[334525411,1723173100943,-500.0,0.00024395,5]
[334525412,1723173100954,-500.0,0.00024395,5]
[334525413,1723173100963,-381.73368197,0.00024395,5]
[334525414,1723173100972,-500.0,0.00024395,5]
[334525415,1723173100981,-500.0,0.00024395,5]
[334525416,1723173100991,-500.0,0.00024395,5]
[334525417,1723173101000,-160.39051131,0.00024395,5]
[334525418,1723173101009,-150.0,0.00024395,2]
[334525419,1723173101019,-838.25,0.00024395,5]
[334525420,1723173101028,-838.25,0.00024395,5]
[334525421,1723173101037,-838.25,0.00024395,5]
[334525422,1723173101047,-838.25,0.00024395,5]
[334525423,1723173101056,-838.37254573,0.00024395,5]
[334525424,1723173101065,-1285.69,0.00024395,5]
[334525425,1723173101075,-753.85,0.00024395,5]
[334525426,1723173101084,-753.85,0.00024395,5]
[334525427,1723173101093,-753.85,0.00024395,5]
[334525428,1723173101103,-753.85,0.00024395,5]
[334525429,1723173101112,-753.97166145,0.00024395,5]
[334525430,1723173101121,-500.0,0.00024395,5]
[334525431,1723173101132,-701.47,0.00024395,5]
[334525432,1723173101142,-701.47,0.00024395,5]
[334525433,1723173101152,-701.47,0.00024395,5]
[334525434,1723173101160,-701.47,0.00024395,5]
[334525435,1723173101170,-701.69123126,0.00024395,5]
[334525436,1723173101178,-880.65,0.00024395,5]
[334525437,1723173101186,-880.65,0.00024395,5]
[334525438,1723173101195,-880.65,0.00024395,5]
[334525439,1723173101211,-880.65,0.00024395,5]
[334525440,1723173101220,-880.72771072,0.00024395,5]
[334525441,1723173101229,-153.084766,0.00024395,7]
[334525442,1723173101239,-958.51,0.00024395,5]
[334525443,1723173101248,-958.51,0.00024395,5]
[334525444,1723173101257,-958.51,0.00024395,5]
[334525445,1723173101267,-958.51,0.00024395,5]
[334525446,1723173101276,-958.68981131,0.00024395,5]
[334525447,1723173101286,-1790.02,0.00024395,5]
[334525448,1723173101295,-1790.02,0.00024395,5]
[334525449,1723173101305,-1790.02,0.00024395,5]
[334525450,1723173101314,-1790.02,0.00024395,5]
[334525451,1723173101324,-1790.1840123,0.00024395,5]
[334525452,1723173101334,-151.0,0.00024395,7]
[334525453,1723173101344,-637.63,0.00024395,5]
[334525454,1723173101354,-637.63,0.00024395,5]
[334525455,1723173101365,-637.63,0.00024395,5]
[334525456,1723173101375,-637.63,0.00024395,5]
[334525457,1723173101385,-637.72734886,0.00024395,5]
[334525458,1723173101394,-723.07,0.00024395,5]
[334525459,1723173101405,-723.07,0.00024395,5]
[334525460,1723173101414,-723.07,0.00024395,5]
[334525461,1723173101425,-723.07,0.00024395,5]
[334525462,1723173101435,-723.08089801,0.00024395,5]
[334525463,1723173101445,-560.88,0.00024395,5]
[334525464,1723173101458,-560.88,0.00024395,5]
[334525465,1723173101467,-560.88,0.00024395,5]
[334525466,1723173101476,-560.88,0.00024395,5]
[334525467,1723173101485,-561.01125805,0.00024395,5]
[334525468,1723173101494,-535.52,0.00024395,5]
[334525469,1723173101504,-535.52,0.00024395,5]
[334525470,1723173101513,-734.02,0.00024395,5]
[334525471,1723173101523,-535.52,0.00024395,5]
[334525472,1723173101533,-535.52,0.00024395,5]
[334525473,1723173101543,-535.62706918,0.00024395,5]
[334525474,1723173101553,-1290.79,0.00024395,5]
[334525475,1723173101563,-1290.79,0.00024395,5]
[334525476,1723173101574,-1290.79,0.00024395,5]
[334525477,1723173101584,-1290.79,0.00024395,5]
[334525478,1723173101595,-1290.88696997,0.00024395,5]
[334525479,1723173101605,-816.35,0.00024395,5]
[334525480,1723173101616,-816.35,0.00024395,5]
[334525481,1723173101627,-1131.27,0.00024395,5]
[334525482,1723173101636,-816.35,0.00024395,5]
[334525483,1723173101646,-1131.27,0.00024395,5]
[334525484,1723173101656,-816.35,0.00024395,5]
[334525485,1723173101665,-1131.27,0.00024395,5]
[334525486,1723173101675,-1131.27,0.00024395,5]
[334525487,1723173101685,-816.41883493,0.00024395,5]
[334525488,1723173101694,-1131.46365101,0.00024395,5]
[334525489,1723173101706,-810.07,0.00024395,5]
[334525490,1723173101716,-810.07,0.00024395,5]
[334525491,1723173101726,-810.07,0.00024395,5]
[334525492,1723173101735,-810.07,0.00024395,5]
[334525493,1723173101744,-810.28924977,0.00024395,5]
[334525494,1723173101753,-500.0,0.00024395,5]
[334525495,1723173101762,-500.0,0.00024395,5]
[334525496,1723173101771,-500.0,0.00024395,5]
[334525497,1723173101780,-500.0,0.00024395,5]
[334525498,1723173101789,-301.18060668,0.00024395,5]
[334525499,1723173101798,-2304.74,0.00024395,5]
[334525500,1723173101807,-2304.74,0.00024395,5]
[334525501,1723173101816,-2304.74,0.00024395,5]
[334525502,1723173101825,-2304.74,0.00024395,5]
[334525503,1723173101835,-2304.86932178,0.00024395,5]
[334525504,1723173101845,-500.0,0.00024395,5]
[334525505,1723173101854,-175.50430532,0.00024395,5]
[334525506,1723173101863,-940.54,0.00024395,5]
[334525507,1723173101872,-940.54,0.00024395,5]
[334525508,1723173101881,-940.54,0.00024395,5]
[334525509,1723173101891,-940.54,0.00024395,5]
[334525510,1723173101900,-940.5468592,0.00024395,5]
[334525511,1723173101909,-1576.72,0.00024395,5]
[334525512,1723173101919,-1026.06,0.00024395,5]
[334525513,1723173101929,-1026.06,0.00024395,5]
[334525514,1723173101939,-1026.06,0.00024395,5]
[334525515,1723173101951,-1026.06,0.00024395,5]
[334525516,1723173101960,-1026.15930908,0.00024395,5]
[334525517,1723173101969,-2848.78,0.00024395,5]
[334525518,1723173101980,-500.0,0.00024395,5]
[334525519,1723173101990,-500.0,0.00024395,5]
[334525520,1723173102001,-500.0,0.00024395,5]
[334525521,1723173102011,-500.0,0.00024395,5]
[334525522,1723173102021,-292.33826971,0.00024395,5]
[334525523,1723173102031,-500.0,0.00024395,5]
[334525524,1723173102040,-500.0,0.00024395,5]
[334525525,1723173102050,-525.82626303,0.00024395,5]
[334525526,1723173102060,-1017.24,0.00024395,5]
[334525527,1723173102071,-370.22206137,0.00024395,5]
[334525528,1723173102080,-837.62,0.00024395,5]
[334525529,1723173102091,-2267.83,0.00024395,5]
[334525530,1723173102100,-2267.83,0.00024395,5]
[334525531,1723173102110,-2267.83,0.00024395,5]
[334525532,1723173102120,-2267.83,0.00024395,5]
[334525533,1723173102130,-2267.84846849,0.00024395,5]
[334525534,1723173102142,-1900.76,0.00024395,5]
[334525535,1723173102153,-745.32,0.00024395,5]
[334525536,1723173102163,-745.32,0.00024395,5]
[334525537,1723173102174,-745.32,0.00024395,5]
[334525538,1723173102184,-745.32,0.00024395,5]
[334525539,1723173102195,-745.38213627,0.00024395,5]
[334525540,1723173102206,-858.69,0.00024395,5]
[334525541,1723173102217,-858.69,0.00024395,5]
[334525542,1723173102227,-858.69,0.00024395,5]
[334525543,1723173102236,-858.69,0.00024395,5]
[334525544,1723173102245,-858.71630355,0.00024395,5]
[334525545,1723173102255,-500.0,0.00024395,5]
[334525546,1723173102265,-621.7,0.00024395,5]
[334525547,1723173102274,-2017.79,0.00024395,5]
[334525548,1723173102284,-621.7,0.00024395,5]
[334525549,1723173102293,-621.7,0.00024395,5]
[334525550,1723173102304,-621.7,0.00024395,5]
[334525551,1723173102313,-621.70233653,0.00024395,5]
[334525552,1723173102324,-1365.06,0.00024395,5]
[334525553,1723173102334,-1365.06,0.00024395,5]
[334525554,1723173102344,-1365.06,0.00024395,5]
[334525555,1723173102353,-1365.06,0.00024395,5]
[334525556,1723173102363,-1365.09892986,0.00024395,5]
[334525557,1723173102372,-1897.92,0.00024395,5]
[334525558,1723173102382,-1897.92,0.00024395,5]
[334525559,1723173102391,-1897.92,0.00024395,5]
[334525560,1723173102401,-1897.92,0.00024395,5]
[334525561,1723173102411,-1898.11228717,0.00024395,5]
[334525562,1723173102421,-619.35,0.00024395,5]
[334525563,1723173102430,-612.32,0.00024395,5]
[334525564,1723173102559,-612.32,0.00024395,5]
[334525565,1723173102569,-612.32,0.00024395,5]
[334525566,1723173102578,-612.32,0.00024395,5]
[334525567,1723173102587,-612.44448177,0.00024395,5]
[334525568,1723173102596,-1257.11,0.00024395,5]
[334525569,1723173102605,-500.0,0.00024395,5]
[334525570,1723173102614,-500.0,0.00024395,5]
[334525571,1723173102623,-533.06299743,0.00024395,5]
[334525572,1723173102633,-1478.11,0.00024395,5]
[334525573,1723173102643,-1478.11,0.00024395,5]
[334525574,1723173102653,-1478.11,0.00024395,5]
[334525575,1723173102662,-1478.11,0.00024395,5]
[334525576,1723173102672,-1478.15356605,0.00024395,5]
[334525577,1723173102682,-500.0,0.00024395,5]
[334525578,1723173102692,-500.0,0.00024395,5]
[334525579,1723173102702,-554.61,0.00024395,5]
[334525580,1723173102712,-554.61,0.00024395,5]
[334525581,1723173102721,-500.0,0.00024395,5]
[334525582,1723173102732,-554.61,0.00024395,5]
[334525583,1723173102741,-213.25784891,0.00024395,5]
[334525584,1723173102750,-554.61,0.00024395,5]
[334525585,1723173102759,-554.71630909,0.00024395,5]
[334525586,1723173102769,-500.0,0.00024395,5]
[334525587,1723173102779,-500.0,0.00024395,5]
[334525588,1723173102788,-374.84743973,0.00024395,5]
[334525589,1723173102798,-413.75870224,0.00024395,5]
[334525590,1723173102808,-914.26,0.00024395,5]
[334525591,1723173102818,-914.26,0.00024395,5]
[334525592,1723173102827,-914.26,0.00024395,5]
[334525593,1723173102837,-914.26,0.00024395,5]
[334525594,1723173102847,-914.2667274,0.00024395,5]
[334525595,1723173102856,-1516.34,0.00024395,5]
[334525596,1723173102866,-1516.34,0.00024395,5]
[334525597,1723173102875,-1516.34,0.00024395,5]
[334525598,1723173102887,-1516.34,0.00024395,5]
[334525599,1723173102896,-1516.34794806,0.00024395,5]
[334525600,1723173102906,-1719.92,0.00024395,5]
[334525601,1723173102915,-1075.16,0.00024395,5]
[334525602,1723173102924,-1719.92,0.00024395,5]
[334525603,1723173102933,-1075.16,0.00024395,5]
[334525604,1723173102943,-1719.92,0.00024395,5]
[334525605,1723173102952,-1075.16,0.00024395,5]
[334525606,1723173102962,-1719.92,0.00024395,5]
[334525607,1723173102971,-1720.12087565,0.00024395,5]
[334525608,1723173102980,-1075.16,0.00024395,5]
[334525609,1723173102989,-1075.27738117,0.00024395,5]
[334525610,1723173102998,-2561.56,0.00024395,2]
[334525611,1723173103007,-2476.74,0.00024395,5]
[334525612,1723173103016,-2476.74,0.00024395,5]
[334525613,1723173103026,-2476.74,0.00024395,5]
[334525614,1723173103035,-2476.74,0.00024395,5]
[334525615,1723173103044,-2476.86595465,0.00024395,5]
[334525616,1723173103054,-2084.94,0.00024395,5]
[334525617,1723173103063,-2084.94,0.00024395,5]
[334525618,1723173103072,-2084.94,0.00024395,5]
[334525619,1723173103081,-2084.94,0.00024395,5]
[334525620,1723173103091,-2085.12124958,0.00024395,5]
[334525621,1723173103100,-1168.69,0.00024395,5]
[334525622,1723173103110,-1168.69,0.00024395,5]
[334525623,1723173103119,-1168.69,0.00024395,5]
[334525624,1723173103128,-1168.69,0.00024395,5]
[334525625,1723173103139,-1168.74741227,0.00024395,5]
[334525626,1723173103149,-913.05,0.00024395,5]
[334525627,1723173103158,-913.05,0.00024395,5]
[334525628,1723173103168,-913.05,0.00024395,5]
[334525629,1723173103178,-913.05,0.00024395,5]
[334525630,1723173103187,-913.16750048,0.00024395,5]
[334525631,1723173103196,-1771.96,0.00024395,5]
[334525632,1723173103207,-1771.96,0.00024395,5]
[334525633,1723173103217,-1771.96,0.00024395,5]
[334525634,1723173103226,-1771.96,0.00024395,5]
[334525635,1723173103236,-1772.13028675,0.00024395,5]
[334525636,1723173103245,-2058.38,0.00024395,5]
[334525637,1723173103255,-2058.38,0.00024395,5]
[334525638,1723173103264,-2058.38,0.00024395,5]
[334525639,1723173103273,-2058.38,0.00024395,5]
[334525640,1723173103283,-2058.59284842,0.00024395,5]
[334525641,1723173103292,-500.0,0.00024395,5]
[334525642,1723173103301,-500.0,0.00024395,5]
[334525643,1723173103311,-500.0,0.00024395,5]
[334525644,1723173103320,-509.53217469,0.00024395,5]
[334525645,1723173103329,-1446.58,0.00024395,5]
[334525646,1723173103339,-1446.58,0.00024395,5]
[334525647,1723173103348,-738.8,0.00024395,5]
[334525648,1723173103357,-1446.58,0.00024395,5]
[334525649,1723173103367,-1446.58,0.00024395,5]
[334525650,1723173103388,-1446.768193,0.00024395,5]
[334525651,1723173103406,-5908.06,0.00024395,5]
[334525652,1723173103426,-2016.95,0.00024395,5]
[334525653,1723173103448,-2283.75,0.00024395,5]
[334525654,1723173103466,-2283.75,0.00024395,5]
[334525655,1723173103485,-2283.75,0.00024395,5]
[334525656,1723173103505,-2283.75,0.00024395,5]
[334525657,1723173103519,-2283.86121714,0.00024395,5]
[334525658,1723173103538,-555.7,0.00024395,5]
[334525659,1723173103557,-555.7,0.00024395,5]
[334525660,1723173103573,-555.7,0.00024395,5]
[334525661,1723173103589,-555.7,0.00024395,5]
[334525662,1723173103606,-555.84708788,0.00024395,5]
[334525663,1723173103623,-587.54,0.00024395,5]
[334525664,1723173103638,-587.54,0.00024395,5]
[334525665,1723173103655,-587.54,0.00024395,5]
[334525666,1723173103671,-587.54,0.00024395,5]
[334525667,1723173103686,-587.67320297,0.00024395,5]
[334525668,1723173103702,-1933.72,0.00024395,5]
[334525669,1723173103717,-1933.72,0.00024395,5]
[334525670,1723173103732,-1933.72,0.00024395,5]
[334525671,1723173103748,-1933.72,0.00024395,5]
[334525672,1723173103763,-1933.95326174,0.00024395,5]
[334525673,1723173103779,-2360.3,0.00024395,5]
[334525674,1723173103794,-2360.3,0.00024395,5]
[334525675,1723173103809,-2360.3,0.00024395,5]
[334525676,1723173103825,-2360.3,0.00024395,5]
[334525677,1723173103842,-2360.3138827,0.00024395,5]
[334525678,1723173103856,-500.0,0.00024395,5]
[334525679,1723173103873,-500.0,0.00024395,5]
[334525680,1723173103889,-501.29429221,0.00024395,5]
[334525681,1723173103905,-634.45,0.00024395,5]
[334525682,1723173103920,-634.45,0.00024395,5]
[334525683,1723173103934,-634.45,0.00024395,5]
[334525684,1723173103948,-634.45,0.00024395,5]
[334525685,1723173103962,-634.47516022,0.00024395,5]
[334525686,1723173103978,-955.44,0.00024395,5]
[334525687,1723173103994,-955.44,0.00024395,5]
[334525688,1723173104009,-955.44,0.00024395,5]
[334525689,1723173104025,-955.44,0.00024395,5]
[334525690,1723173104041,-955.46198673,0.00024395,5]
[334525691,1723173104057,-553.49,0.00024395,5]
[334525692,1723173104072,-500.0,0.00024395,5]
[334525693,1723173104088,-849.58,0.00024395,5]
[334525694,1723173104103,-849.58,0.00024395,5]
[334525695,1723173104119,-849.58,0.00024395,5]
[334525696,1723173104135,-849.58,0.00024395,5]
[334525697,1723173104149,-849.74307148,0.00024395,5]
[334525698,1723173104165,-598.24,0.00024395,5]
[334525699,1723173104181,-598.24,0.00024395,5]
[334525700,1723173104195,-598.24,0.00024395,5]
[334525701,1723173104213,-598.24,0.00024395,5]
[334525702,1723173104228,-598.46894195,0.00024395,5]
[334525703,1723173104244,-2539.06,0.00024395,5]
[334525704,1723173104259,-762.01,0.00024395,5]
[334525705,1723173104276,-762.01,0.00024395,5]
[334525706,1723173104291,-762.01,0.00024395,5]
[334525707,1723173104309,-1491.08,0.00024395,5]
[334525708,1723173104324,-1491.08,0.00024395,5]
[334525709,1723173104338,-762.01,0.00024395,5]
[334525710,1723173104353,-1491.08,0.00024395,5]
[334525711,1723173104369,-762.06568217,0.00024395,5]
[334525712,1723173104383,-1491.08,0.00024395,5]
[334525713,1723173104398,-1491.17070666,0.00024395,5]
[334525714,1723173104413,-729.35,0.00024395,5]
[334525715,1723173104428,-729.35,0.00024395,5]
[334525716,1723173104442,-729.35,0.00024395,5]
[334525717,1723173104461,-729.35,0.00024395,5]
[334525718,1723173104478,-729.49618457,0.00024395,5]
[334525719,1723173104493,-1747.68,0.00024395,5]
[334525720,1723173104509,-1029.94,0.00024395,5]
[334525721,1723173104523,-959.94,0.00024395,5]
[334525722,1723173104537,-728.07,0.00024395,5]
[334525723,1723173104554,-728.07,0.00024395,5]
[334525724,1723173104570,-728.07,0.00024395,5]
[334525725,1723173104584,-3315.04,0.00024395,5]
[334525726,1723173104600,-728.07,0.00024395,5]
[334525727,1723173104616,-728.17150821,0.00024395,5]
[334525728,1723173104632,-2164.79,0.00024395,5]
[334525729,1723173104646,-2164.79,0.00024395,5]
[334525730,1723173104662,-2164.79,0.00024395,5]
[334525731,1723173104677,-2164.79,0.00024395,5]
[334525732,1723173104692,-2165.01529692,0.00024395,5]
[334525733,1723173104708,-500.0,0.00024395,5]
[334525734,1723173104864,-2760.09,0.00024395,5]
[334525735,1723173104893,-870.98,0.00024395,5]
[334525736,1723173104903,-1735.62,0.00024395,5]
[334525737,1723173104912,-1735.62,0.00024395,5]
[334525738,1723173104921,-1735.62,0.00024395,5]
[334525739,1723173104930,-1735.62,0.00024395,5]
[334525740,1723173104940,-1735.62298531,0.00024395,5]
[334525741,1723173104949,-796.36,0.00024395,5]
[334525742,1723173104960,-2073.19,0.00024395,5]
[334525743,1723173104969,-151.0,0.00024395,2]
[334525744,1723173104979,-2073.19,0.00024395,5]
[334525745,1723173104992,-2598.71,0.00024395,5]
[334525746,1723173105002,-4419.52,0.00024395,5]
[334525747,1723173105012,-2073.19,0.00024395,5]
[334525748,1723173105022,-2073.19,0.00024395,5]
[334525749,1723173105033,-507.23,0.00024395,5]
[334525750,1723173105042,-2073.37038232,0.00024395,5]
[334525751,1723173105051,-507.23,0.00024395,5]
[334525752,1723173105062,-507.23,0.00024395,5]
[334525753,1723173105072,-507.23,0.00024395,5]
[334525754,1723173105084,-507.46635776,0.00024395,5]
[334525755,1723173105095,-500.0,0.00024395,5]
[334525756,1723173105106,-504.04,0.00024395,5]
[334525757,1723173105116,-1623.9,0.00024395,5]
[334525758,1723173105128,-500.0,0.00024395,5]
[334525759,1723173105141,-500.0,0.00024395,5]
[334525760,1723173105151,-500.0,0.00024395,5]
[334525761,1723173105160,-504.15266755,0.00024395,5]
[334525762,1723173105170,-500.0,0.00024395,5]
[334525763,1723173105180,-3082.71,0.00024395,5]
[334525764,1723173105190,-3082.71,0.00024395,5]
[334525765,1723173105200,-3082.71,0.00024395,5]
[334525766,1723173105211,-3082.71,0.00024395,5]
[334525767,1723173105221,-3082.77,0.00024395,5]
[334525768,1723173105231,-500.0,0.00024395,5]
[334525769,1723173105240,-1742.45,0.00024395,5]
[334525770,1723173105250,-754.59,0.00024395,5]
[334525771,1723173105260,-1500.41,0.00024395,5]
[334525772,1723173105270,-931.62,0.00024395,5]
[334525773,1723173105279,-931.62,0.00024395,5]
[334525774,1723173105289,-931.62,0.00024395,5]
[334525775,1723173105299,-931.62,0.00024395,5]
[334525776,1723173105309,-931.67584327,0.00024395,5]
[334525777,1723173105319,-7078.41,0.00024395,5]
[334525778,1723173105328,-577.95,0.00024395,5]
[334525779,1723173105337,-1366.36,0.00024395,5]
[334525780,1723173105347,-1366.36,0.00024395,5]
[334525781,1723173105356,-1366.36,0.00024395,5]
[334525782,1723173105366,-1366.36,0.00024395,5]
[334525783,1723173105375,-1366.57122577,0.00024395,5]
[334525784,1723173105385,-756.55,0.00024395,5]
[334525785,1723173105395,-1421.12,0.00024395,5]
[334525786,1723173105405,-1421.12,0.00024395,5]
[334525787,1723173105414,-12292.82,0.00024395,5]
[334525788,1723173105424,-1421.12,0.00024395,5]
[334525789,1723173105434,-1421.12,0.00024395,5]
[334525790,1723173105444,-1421.3207048,0.00024395,5]
[334525791,1723173105454,-605.71,0.00024395,5]
[334525792,1723173105464,-605.71,0.00024395,5]
[334525793,1723173105474,-605.71,0.00024395,5]
[334525794,1723173105484,-605.71,0.00024395,5]
[334525795,1723173105493,-605.79694193,0.00024395,5]
[334525796,1723173105503,-500.0,0.00024395,5]
[334525797,1723173105512,-500.0,0.00024395,5]
[334525798,1723173105522,-569.12,0.00024395,5]
[334525799,1723173105532,-569.12,0.00024395,5]
[334525800,1723173105542,-569.12,0.00024395,5]
[334525801,1723173105551,-569.12,0.00024395,5]
[334525802,1723173105560,-569.29861695,0.00024395,5]
[334525803,1723173105570,-500.0,0.00024395,5]
[334525804,1723173105580,-500.0,0.00024395,5]
[334525805,1723173105590,-500.0,0.00024395,5]
[334525806,1723173105600,-500.0,0.00024395,5]
[334525807,1723173105610,-867.19,0.00024395,5]
[334525808,1723173105619,-912.55,0.00024395,5]
[334525809,1723173105629,-548.86,0.00024395,5]
[334525810,1723173105639,-356.01235868,0.00024395,5]
[334525811,1723173105649,-3027.54,0.00024395,5]
[334525812,1723173105659,-1115.98,0.00024395,5]
[334525813,1723173105668,-2152.11,0.00024395,5]
[334525814,1723173105678,-2152.11,0.00024395,5]
[334525815,1723173105687,-2152.11,0.00024395,5]
[334525816,1723173105696,-1093.44,0.00024395,5]
[334525817,1723173105707,-2152.11,0.00024395,5]
[334525818,1723173105717,-2152.15344525,0.00024395,5]
[334525819,1723173105726,-500.0,0.00024395,5]
[334525820,1723173105736,-381.71175478,0.00024395,5]
[334525821,1723173105746,-665.69,0.00024395,5]
[334525822,1723173105756,-618.25,0.00024395,5]
[334525823,1723173105766,-618.25,0.00024395,5]
[334525824,1723173105776,-618.25,0.00024395,5]
[334525825,1723173105785,-618.25,0.00024395,5]
[334525826,1723173105795,-500.0,0.00024395,5]
[334525827,1723173105804,-444.06435844,0.00024395,5]
[334525828,1723173105813,-618.47738038,0.00024395,5]
[334525829,1723173105823,-2725.36,0.00024395,5]
[334525830,1723173105833,-539.13,0.00024395,5]
[334525831,1723173105843,-684.84,0.00024395,5]
[334525832,1723173105853,-684.84,0.00024395,5]
[334525833,1723173105863,-684.84,0.00024395,5]
[334525834,1723173105873,-684.84,0.00024395,5]
[334525835,1723173105883,-685.02666687,0.00024395,5]
[334525836,1723173105895,-2207.94,0.00024395,5]
[334525837,1723173105904,-1090.63,0.00024395,5]
[334525838,1723173105914,-1090.63,0.00024395,5]
[334525839,1723173105924,-2483.96,0.00024395,5]
[334525840,1723173105933,-1090.63,0.00024395,5]
[334525841,1723173105943,-1090.63,0.00024395,5]
[334525842,1723173105954,-1090.8213266,0.00024395,5]
[334525843,1723173105963,-3472.19,0.00024395,5]
[334525844,1723173105973,-1834.93,0.00024395,5]
[334525845,1723173105984,-2639.38,0.00024395,5]
[334525846,1723173105993,-889.01,0.00024395,5]
[334525847,1723173106003,-889.01,0.00024395,5]
[334525848,1723173106013,-889.01,0.00024395,5]
[334525849,1723173106023,-889.01,0.00024395,5]
[334525850,1723173106034,-889.12100713,0.00024395,5]
[334525851,1723173106043,-151.0,0.00024395,7]
[334525852,1723173106052,-187.86,0.00024396,5]
[334525853,1723173106062,-500.0,0.00024396,5]
[334525854,1723173106072,-2642.87,0.00024396,5]
[334525855,1723173106081,-530.96,0.00024396,5]
[334525856,1723173106091,-500.0,0.00024396,5]
[334525857,1723173106100,-2144.25,0.00024396,5]
[334525858,1723173106110,-150.0,0.00024396,2]
[334525859,1723173106119,-150.0,0.00024396,2]
[334525860,1723173106130,-500.0,0.00024397,5]
[334525861,1723173106141,-2642.87,0.00024397,5]
[334525862,1723173106150,-530.96,0.00024397,5]
[334525863,1723173106160,-500.0,0.00024397,5]
[334525864,1723173106169,-2144.25,0.00024397,5]
[334525865,1723173106180,-195.655233,0.00024399,7]
[334525866,1723173106190,-195.655233,0.00024399,7]
[334525867,1723173106200,-911.0,0.00024399,2]
[334525868,1723173106212,-166.21288328,0.000244,2]
[334525869,1723173106223,-240.81489413,0.000244,2]
[334525870,1723173106232,-1489.25253361,0.000244,2]
[334525871,1723173106242,-316.12016986,0.000244,2]
[334525872,1723173106251,-16538.52149222,0.000244,2]
[334525873,1723173106261,-150.0,0.00024403,2]
[334525874,1723173106270,-150.0,0.00024405,2]
[334525875,1723173106279,-150.0,0.00024407,2]
[334525876,1723173106288,-150.0,0.00024407,2]
[334525877,1723173106297,-150.0,0.00024408,2]
[334525878,1723173106307,-150.0,0.00024415,2]
[334525879,1723173106316,-150.0,0.00024417,2]
[334525880,1723173106325,-150.0,0.00024418,2]
[334525881,1723173106335,-150.0,0.00024419,2]
[334525882,1723173106344,-150.0,0.00024422,2]
[334525883,1723173106353,-150.0,0.00024422,2]
[334525884,1723173106362,-150.0,0.00024425,2]
[334525885,1723173106371,-150.0,0.00024425,2]
[334525886,1723173106380,-150.0,0.00024426,2]
[334525887,1723173106389,-150.0,0.00024434,2]
[334525888,1723173106399,-150.0,0.00024439,2]
[334525889,1723173106408,-150.0,0.0002444,2]
[334525890,1723173106417,-150.0,0.00024443,2]
[334525891,1723173106427,-150.0,0.0002445,2]
[334525892,1723173106436,-150.70724886,0.0002445,2]
[334525893,1723173106446,-150.0,0.00024451,2]
[334525894,1723173106457,-150.0,0.00024454,2]
[334525895,1723173106467,-150.0,0.00024459,2]
[334525896,1723173106477,-150.0,0.0002446,2]
[334525897,1723173106486,-150.0,0.00024461,2]
[334525898,1723173106495,-150.0,0.00024462,2]
[334525899,1723173106504,-150.0,0.00024463,2]
[334525900,1723173106514,-150.0,0.00024464,2]
[334525901,1723173106523,-150.0,0.00024467,2]
[334525902,1723173106532,-150.0,0.0002447,2]
[334525903,1723173106542,-1035.85389854,0.00024473,2]
[334525904,1723173106552,-600.4351847,0.0002448,3]
[334525905,1723173106562,-3846.03189167,0.0002448,2]
[334525906,1723173106571,-150.0,0.00024481,2]
[334525907,1723173106580,-150.0,0.00024481,2]